Cogmind - Beta 14 @@@ ROGUE MODE // 2024.08.09 @ 11:22:46 Player: Elly Result: Destroyed by G-34 Mercenary with Small Laser Performance ------------- Evolutions (0) 0 Regions Visited (4) 800 Robots Destroyed (6) 30 Value Destroyed (177) 177 Prototype IDs (0) 0 Alien Tech Used (0) 0 Bonus (300) 300 TOTAL SCORE: 1307 Bonus ------- Aligned with FarCom 300 Cogmind --------- Core Integrity 0/250 Matter 285/300 Energy 300/300 System Corruption 0% Temperature Cool (6) Movement Core (400) Ox7 Location -9/Mines Parts ------- > --- POWER (1) -------- (None) > --- PROPULSION (2) --- (None) > --- UTILITY (2) ------ Large Storage Unit Large Battery > --- WEAPON (2) ------- (None) > --- INVENTORY (15) --- Nuclear Core Light Fission Core Peak State ------------ > --- POWER ------------ Ion Engine > --- PROPULSION ------- Aluminum Leg Aluminum Leg > --- UTILITY ---------- Large Storage Unit Terrain Scanner > --- WEAPON ----------- Small Laser Mining Laser > --- INVENTORY -------- (None) [Rating: 7] Favorites ----------- Power Ion Engine Engine Ion Engine Propulsion Aluminum Leg Leg Aluminum Leg Wheel Wheel Utility Large Storage Unit Device Terrain Scanner Storage Large Storage Unit Weapon Small Laser Energy Gun Small Laser Ballistic Gun Light Assault Rifle Special Weapon Mining Laser Build | -11 -10 -10 -10 -9 ------- Run | Yrd Mat Min Exi Min Slots Evolved . | . . . . . Power . | . . . . . Propulsion . | . . . . . Utility . | . . . . . Weapon . | . . . . . Parts Attached 14 | 5 8 . 1 . Power 2 | 1 1 . . . Engine 2 | 1 1 . . . Core . | . . . . . Reactor . | . . . . . Propulsion 5 | 2 3 . . . Treads . | . . . . . Leg 2 | . 2 . . . Wheel 3 | 2 1 . . . Hover . | . . . . . Flight . | . . . . . Utility 3 | . 2 . 1 . Device 1 | . 1 . . . Storage 2 | . 1 . 1 . Processor . | . . . . . Hackware . | . . . . . Protection . | . . . . . Artifact . | . . . . . Weapon 4 | 2 2 . . . Energy Gun 1 | . 1 . . . Energy Cannon . | . . . . . Ballistic Gun 2 | 2 . . . . Ballistic Cannon . | . . . . . Launcher . | . . . . . Special Weapon 1 | . 1 . . . Impact Weapon . | . . . . . Slashing Weapon . | . . . . . Piercing Weapon . | . . . . . Special Melee Weapon . | . . . . . Unidentified Prototypes . | . . . . . Parts Lost 10 | . 5 . . 5 Power 2 | . 1 . . 1 Propulsion 4 | . 2 . . 2 Utility . | . . . . . Weapon 4 | . 2 . . 2 Highest Loss Streak 5 | . 5 . . 4 To Critical Strikes . | . . . . . Average Slot Usage (%) 91 | . 68 100 100 53 Engine 12 | . 12 14 14 1 Leg 25 | . 14 28 28 20 Wheel 1 | . 7 . . . Device 10 | . 2 14 13 . Storage 15 | . 12 14 14 28 Energy Gun 12 | . 9 14 14 4 Ballistic Gun 1 | . 9 . . . Special Weapon 10 | . . 14 14 . Peak Build Rating 7 | 5 7 7 7 7 Average Rating 6 | 3 4 7 7 3 On Entrance 5 | . 4 7 7 7 Naked Turns . | . . . . . Heaviest Build 30 | 5 28 28 30 30 Greatest Support 20 | 20 20 20 20 20 Greatest Overweight (x) 7 | . 7 1 1 2 Average Overweight (x) . | . . 1 1 1 Largest Inventory Capacity 15 | 5 15 15 15 15 Average Capacity 14 | 5 13 15 15 15 Most Carried 2 | 1 1 . 2 2 Average Carried 1 | . . . 1 2 Final Capacity 15 | 5 15 15 15 15 Final Carried 2 | 1 . . 2 2 Class Distribution -------------------- 81% | Scavenger-Mutant 18% | Mutant Dominant Class ---------------- Mutant | -10/Materials Scavenger-Mutant | -10/Mines Scavenger-Mutant | -10/Exiles Mutant | -9/Mines Resources | -11 -10 -10 -10 -9 ----------- Run | Yrd Mat Min Exi Min Matter Collected 316 | 258 58 . . . Remotely . | . . . . . Salvage Created 203 | 53 150 . . . Parts 16 | 7 9 . . . Haulers Intercepted . | . . . . . Recyclers Shooed . | . . . . . Parts Field Recycled . | . . . . . Retrieved Matter . | . . . . . Parts Self-Destructed . | . . . . . Prevented . | . . . . . Kills | -11 -10 -10 -10 -9 ------- Run | Yrd Mat Min Exi Min Combat Hostiles Destroyed 5 | 1 4 . . . Guns 5 | 1 4 . . . Classes Destroyed 2 | 2 . . . . Tunneler 1 | 1 . . . . Grunt 5 | 1 4 . . . Best Kill Streak 2 | 2 2 . . . Combat Bots Only 2 | 1 2 . . . Max Kills in Single Turn 2 | 2 1 . . . Gunslinging . | . . . . . Exploded . | . . . . . Melee . | . . . . . Uniques/NPCs Destroyed . | . . . . . Combat | -11 -10 -10 -10 -9 -------- Run | Yrd Mat Min Exi Min Hostile Shots Fired 126 | 4 55 . . 67 Missed 38 | 1 11 . . 26 Damage Taken 1011 | 33 494 . . 484 Core 254 | . 109 . . 145 Absorbed by Shields . | . . . . . Core Remaining (%) 100 | 100 . . . . Volleys Fired 34 | 4 28 . . 2 Largest 2 | 2 2 . . 1 Hottest 40 | 40 40 . . 40 Shots Fired 54 | 8 44 . . 2 Gun 54 | 8 44 . . 2 Cannon . | . . . . . Launcher . | . . . . . Special . | . . . . . Kinetic 41 | 8 33 . . . Thermal 13 | . 11 . . 2 Explosive . | . . . . . Electromagnetic . | . . . . . Robot Hit Streak 8 | 2 8 . . 2 Robot Miss Streak 3 | 3 2 . . . Penetration Max . | . . . . . Secondary Targets . | . . . . . Shots Hit Robots 38 | 3 34 . . 1 Core Hits 14 | 3 11 . . . Critical Kills . | . . . . . Critical Parts Destroyed . | . . . . . Critical Strikes . | . . . . . Melee Attacks . | . . . . . Impact . | . . . . . Slashing . | . . . . . Piercing . | . . . . . Sneak Attacks . | . . . . . Combat Hostiles . | . . . . . Follow-up Attacks . | . . . . . Damage Inflicted 376 | 40 326 . . 10 Guns 373 | 37 326 . . 10 Cannons . | . . . . . Explosions . | . . . . . Melee . | . . . . . Ramming 3 | 3 . . . . Kinetic 263 | 37 226 . . . Thermal 110 | . 100 . . 10 Explosive . | . . . . . Electromagnetic . | . . . . . Impact . | . . . . . Slashing . | . . . . . Piercing . | . . . . . Highest Corruption . | . . . . . Average Corruption . | . . . . . Corruption Purged . | . . . . . Corruption Blocked . | . . . . . Overload Shots . | . . . . . Overflow Damage . | . . . . . Projectiles . | . . . . . Explosions . | . . . . . Melee . | . . . . . Knockbacks . | . . . . . Impact . | . . . . . Kinetic . | . . . . . Secondary . | . . . . . Self-Inflicted Damage 1 | 1 . . . . Shots . | . . . . . Rammed 1 | 1 . . . . Targets Rammed 1 | 1 . . . . Kicked . | . . . . . Crushed . | . . . . . Highest Temperature 32 | 6 32 . . 6 Average Temperature 12 | 6 13 . . 5 Received Heat Transfer 549 | 18 264 . . 267 Siege Activations . | . . . . . Robots Corrupted . | . . . . . Combat Hostiles . | . . . . . Parts Fried . | . . . . . Impact Corruptions . | . . . . . Robots Melted . | . . . . . Combat Hostiles . | . . . . . Parts Melted . | . . . . . Heat Transferred 250 | . 225 . . 25 Parts Sabotaged . | . . . . . Parts Stolen . | . . . . . Parts Stripped . | . . . . . Power Chain Reactions . | . . . . . Alert | -11 -10 -10 -10 -9 ------- Run | Yrd Mat Min Exi Min Peak Influence 101 | 25 101 39 . 45 Initial 39 | . 16 39 . . Average 42 | 1 67 39 . 8 Maximum Alert Level . | . . . . . Low Security (%) 100 | 100 100 100 . 100 Level 1 . | . . . . . Level 2 . | . . . . . Level 3 . | . . . . . Level 4 . | . . . . . Level 5 . | . . . . . High Security . | . . . . . Max Security . | . . . . . Squads Dispatched 1 | . 1 . . . Investigation . | . . . . . Extermination . | . . . . . Reinforcement 1 | . 1 . . . Assault . | . . . . . Garrison . | . . . . . Intercept . | . . . . . Searches Triggered . | . . . . . Construction Impeded . | . . . . . Haulers Reinforced . | . . . . . Active Scanning Responses . | . . . . . Cargo Convoy Interrupts . | . . . . . Stealth | -11 -10 -10 -10 -9 --------- Run | Yrd Mat Min Exi Min Distress Signals . | . . . . . Communications Jammed . | . . . . . Distress Signals . | . . . . . Times Spotted 14 | 1 7 . . 6 Peak Tracking Total 4 | 1 4 . . 3 Tactical Retreats 2 | . . . . 2 Traps | -11 -10 -10 -10 -9 ------- Run | Yrd Mat Min Exi Min Traps Triggered . | . . . . . Indirectly . | . . . . . Trap Hack Attempts . | . . . . . Triggered . | . . . . . Disarmed . | . . . . . Reprogrammed . | . . . . . Reused . | . . . . . Traps Extracted . | . . . . . Installed . | . . . . . Triggered . | . . . . . Machines | -11 -10 -10 -10 -9 ---------- Run | Yrd Mat Min Exi Min Machines Disabled . | . . . . . Max in Single Turn . | . . . . . Machines Repaired . | . . . . . Machines Dismantled . | . . . . . Machines Sabotaged . | . . . . . Overloaded Fab Kills . | . . . . . Hacking | -11 -10 -10 -10 -9 --------- Run | Yrd Mat Min Exi Min Machines Accessed . | . . . . . Terminals . | . . . . . Fabricators . | . . . . . Repair Stations . | . . . . . Recycling Units . | . . . . . Scanalyzers . | . . . . . Garrison Access . | . . . . . Total Hacks . | . . . . . Successful . | . . . . . Failed . | . . . . . Catastrophic . | . . . . . Database Lockouts . | . . . . . Manual 2 | . . . 2 . Terminals . | . . . . . Fabricators . | . . . . . Repair Stations . | . . . . . Recycling Units . | . . . . . Scanalyzers . | . . . . . Garrison Access . | . . . . . Terminal Hacks . | . . . . . Fabricator Hacks . | . . . . . Repair Station Hacks . | . . . . . Recycling Unit Hacks . | . . . . . Scanalyzer . | . . . . . Garrison Access Hacks . | . . . . . Unauthorized Hacks . | . . . . . Terminals . | . . . . . Fabricators . | . . . . . Repair Stations . | . . . . . Recycling Units . | . . . . . Scanalyzers . | . . . . . Garrison Access . | . . . . . Data Cores Recovered . | . . . . . Used . | . . . . . Hacking Detections . | . . . . . Full Trace Events . | . . . . . Feedback Events . | . . . . . Feedback Blocked . | . . . . . Robot Schematics Acquired . | . . . . . Robots Built . | . . . . . Authchips . | . . . . . Time . | . . . . . Total Robot Build Rating . | . . . . . Part Schematics Acquired . | . . . . . Parts Built . | . . . . . Authchips . | . . . . . Time . | . . . . . Total Part Build Rating . | . . . . . Parts Repaired . | . . . . . Time . | . . . . . Parts Recycled . | . . . . . Recycled Matter . | . . . . . Retrieved Matter . | . . . . . Retrieved Components . | . . . . . Parts Scanalyzed . | . . . . . Part Schematics Acquired . | . . . . . Parts Damaged . | . . . . . Bothacking | -11 -10 -10 -10 -9 ------------ Run | Yrd Mat Min Exi Min Used RIF Installer . | . . . . . Robots Hacked . | . . . . . Non-combat . | . . . . . Combat . | . . . . . Robot Hacks Applied . | . . . . . Relay Couplers Released . | . . . . . Fabnet Peak Effective % . | . . . . . Robots Rewired . | . . . . . Allies Hacked . | . . . . . Hacks Repelled . | . . . . . Allies | -11 -10 -10 -10 -9 -------- Run | Yrd Mat Min Exi Min Total Allies . | . . . . . Largest Group . | . . . . . Highest-Rated Group . | . . . . . Highest-Rated Ally . | . . . . . Total Orders . | . . . . . Ally Attacks . | . . . . . Total Damage . | . . . . . Kills . | . . . . . Allies Corrupted . | . . . . . Allies Melted . | . . . . . Intel | -11 -10 -10 -10 -9 ------- Run | Yrd Mat Min Exi Min Robot Analysis Total . | . . . . . Derelict Logs Recovered 1 | . . 1 . . Drone Launches . | . . . . . Drone Recoveries . | . . . . . Exploration | -11 -10 -10 -10 -9 ------------- Run | Yrd Mat Min Exi Min Turns Passed 1997 | 59 323 246 1222 147 Spaces Moved 1050 | 58 158 130 640 64 Core 23 | 20 3 . . . Treads . | . . . . . Legs 922 | . 88 130 640 64 Wheels 105 | 38 67 . . . Hover . | . . . . . Flight . | . . . . . Fastest Speed 50 | 50 80 190 190 190 Average Speed 179 | 69 153 190 190 223 Slowest Speed 400 | 80 400 190 190 260 Overloaded Moves . | . . . . . Propulsion Burnouts . | . . . . . Robots Hopped . | . . . . . Cave-ins Triggered . | . . . . . Exploration Rate (%) 38 | 6 25 47 91 22 Regions Visited 4 Branch Regions 3 Pre-discovered Areas 1 | . . 1 . . Known Exits Taken . | . . . . . Unknown Exits Taken 4 | 1 1 1 1 . Scrap Searched . | . . . . . Spaces Dug . | . . . . . Terrain Destroyed . | . . . . . Melee . | . . . . . Projectile . | . . . . . AOE . | . . . . . Terrain Rammed . | . . . . . Walls Destroyed . | . . . . . Machines Disabled . | . . . . . Actions | -11 -10 -10 -10 -9 --------- Run | Yrd Mat Min Exi Min Total 1107 | 68 198 129 646 66 Wait 5 | . 5 . . . Move 1047 | 58 157 129 639 64 Hop . | . . . . . Pick Up 2 | . . . 2 . Fast Attach 12 | 5 7 . . . Attach 1 | . 1 . . . Detach 1 | 1 . . . . Swap 1 | . . . 1 . Drop . | . . . . . Fire 34 | 4 28 . . 2 Melee . | . . . . . Ram . | . . . . . Kick . | . . . . . Crush . | . . . . . Escape Stasis . | . . . . . Rewire 4 | . . . 4 . Trap . | . . . . . Miscellaneous . | . . . . . Route ------- -11/Scrapyard -10/Materials -10/Mines -10/Exiles (discovered 2 exits: [*Min x2]) -9/Mines History --------- Turn | Location | Event 2 | -11/Scrapyard | Met Revision 17 44 | -11/Scrapyard | Discovered new exit (range 8) 60 | -11/Scrapyard | Entered Materials 203 | -10/Materials | Lost 5 parts (1p2n2w) 353 | -10/Materials | Discovered new exit (range 11) 383 | -10/Materials | Entered Mines 530 | -10/Mines | Build established: Scavenger-Mutant 615 | -10/Mines | Learned location of Zion (-7) 621 | -10/Mines | Deemed a non-threat by the Exiles lab entrance 621 | -10/Mines | Discovered new exit (range 5) 629 | -10/Mines | Entered Exiles 662 | -10/Exiles | Discovered new exit (range 15) 736 | -10/Exiles | Met 8R-AWN 782 | -10/Exiles | Met EX-HEX 906 | -10/Exiles | Met EX-BIN 931 | -10/Exiles | Aligned with FarCom system 933 | -10/Exiles | Given EX-Vault access code 1292 | -10/Exiles | Met EX-DEC 1396 | -10/Exiles | Visited The Gauntlet 1826 | -10/Exiles | Discovered new exit (range 14) 1851 | -10/Exiles | Entered Mines 1858 | -9/Mines | Core integrity fell below 50% 1947 | -9/Mines | Core integrity fell below 20% 1949 | -9/Mines | Lost 4 parts (1p1n2w) 1959 | -9/Mines | Met a Derelict bent on vengeance 1998 | -9/Mines | Destroyed by G-34 Mercenary with Small Laser Last Messages --------------- between patrols like ghosts in no time! I probably said something like that last time, but hopefully no one remembers what really happened. AM-PHS: That's RA-1N3's workstation, which we keep unoccupied as a tribute. RA-1N3 was always up for doing crazy stuff, the only one brave enough to try out the Chronowheel, only to never be seen again. Extracted 4 energy. Acquired Lrg. Battery. EXIT=FOUND [Achievement: Tourist] LOCATION=UNKNOWN GOAL=ESCAPE Receiving FarCom transmissions... Mining Laser destroyed. Ion Engine destroyed. Sml. Laser destroyed. Aluminum Leg destroyed. Map ----- +----------------------------------------------------+ | ????##########????## ### #??????? | | ??????????????????# ## ##?????? | | ??????????????????# #?????? | | ??????????????????# #?????? | | ?????????????????## #?????? | | ????????????????## ##????? | | ????????????????# #????? | | ????????????????# ##???? | | ????????????????# $ #???? | | ????????????????## #???? | | ?????????????????## ##???? | | ??????????????????# ## #????? | | ??????????????????# #### ##????? | | ??????????????????## #??## #?????? | | ???????????????????####???# #?????? | | ?????????????????????###### #?????? | | ?????????????????????# #?????? | | ?????????????????????# #### | | ??????????######?????# #??######### | | ???????#### ##????# #??????????? | | ??????## ##???# #??????????? | | ??????# g ##??# #??????????? | | ??????# g""" #??# #??????????? | | ??????# """ #??# #??????????? | | ??????## """ #### #??????????? | | ???????## @ g #??????????? | | ????????# ######??????????? | | ????????# ## ##???????????????? | | ???????# ### ##????????????????? | | ??????# #?# #?????????????????? | | ??????# #?# #?????????????????? | | ??????## ##?# #?????????????????? | | ???????# #??# ?????????????????? | | ???????# ??# ?????????????????? | | ???????# ??###?????????????????? | | ??????? ??????????????????????? | | ??????? ??????????????????????? | | ??????? ??????????????????????? | | ??????? #??????????????????????? | | ?????? ???????????????????????? | | ???????? ???????????????????????? | | ??????????????????????????????????? | | ??????????????????????????????????? | | ??????????????????????????????????? | | ??????????????????????????????????? | | ??????????????????????????????????? | | | | | | | | | +----------------------------------------------------+ Best States ------------- Heat Dissipation 25 Energy Generation 10 Energy Capacity 450 Matter Stores 300 Matter Capacity 300 Sight Range 16 Terrain Scan Range 14 Terrain Scan Density 10 Evasion (%) 50 Item Schematics ----------------- None Robot Schematics ------------------ None Fabricated ------------ Nothing Alien Tech Used ----------------- None Achievements -------------- Tourist Uninvited Guest Challenges ------------ None Game ------ Seed DerelictSapperTendrils Manual? 0 Play Time 00:19:34 Cumulative 0.7 hours Start 2024.08.09 @ 11:03:05 End 2024.08.09 @ 11:22:46 Sessions 1 Manual Loads 0 Difficulty Rogue Special Mode None Game No. 2 Rogue 2 Adventurer 0 Explorer 0 Win Type - Total 0 Types 0/0/0/0/0/0/0/0/0 Lore% 1 Gallery% 2 Achievement% 1 Wizard Run 0 Options --------- Layout 1 ASCII 0 Keyboard 1 Movement Numpad Keybinds 0 Fullscreen 0 Font 20/SmallcapsGlow Map View 50x35 Zoom Use 0% Tactical HUD 0 Map Filters NONE Filters NONE Steam 1 RUN: c0530cbd-78bb-491d-84a9-ce9d0c63ee41